bitfinex/quotes_ETHUSD_20241207
["timestamp","ask_amount","ask_price","bid_price","bid_amount"]
[1733557602485,1.75696,3984.2,3983.6,0.07841755]
[1733557602800,1.75696,3984.2,3983.2,0.7984]
[1733557602959,0.04774932,3984.1,3983.3,0.07842293]
[1733557603159,0.46356817,3984.1,3983.4,0.07842293]
[1733557603466,0.46356817,3984.1,3983.5,0.07842293]
[1733557603666,0.46356817,3984.1,3983.3,0.55]
[1733557603996,0.46356817,3984.1,3983.5,0.55]
[1733557604302,0.46356817,3984.1,3983.6,0.07842349]
[1733557604590,0.22205282,3984.0,3983.3,0.55]
[1733557604890,0.04770949,3983.9,3983.5,0.55]
[1733557605257,0.04770949,3983.9,3983.6,0.07842343]
[1733557605966,1.75696,3984.2,3983.6,0.07842343]
[1733557606187,0.04545592,3983.8,3983.6,0.07842343]
[1733557606396,1.75696,3984.2,3983.6,0.07842343]
[1733557606563,0.045436,3983.7,3983.6,0.07842343]
[1733557606771,4.11033915,3984.4,3983.6,0.07842343]
[1733557607075,2.28259371,3984.3,3983.6,0.07842343]
[1733557607262,2.28259371,3984.3,3983.5,0.55]
[1733557607263,0.04553558,3984.2,3983.7,0.07842343]
[1733557607463,0.04553558,3984.2,3983.8,0.07842343]
[1733557607770,0.04553558,3984.2,3983.2,0.7984]
[1733557607771,2.28259371,3984.3,3983.3,0.55]
[1733557607969,0.04391377,3984.1,3983.5,0.55]
[1733557608165,0.04393369,3984.2,3983.6,0.07842301]
[1733557608362,0.04389386,3984.0,3983.7,0.07842301]
[1733557608564,0.04391377,3984.1,3983.8,0.07842301]
[1733557608805,0.04387394,3983.9,3983.3,0.55]
[1733557609013,0.49542708,3984.2,3983.5,0.55]
[1733557609162,0.04385402,3983.8,3983.6,0.07842314]
[1733557609361,0.04385402,3983.8,3983.7,0.07842314]
[1733557609694,0.49542708,3984.2,3983.7,0.07842314]
[1733557609897,0.49542708,3984.2,3983.8,0.07842314]
[1733557610097,0.49542708,3984.2,3983.9,0.07842306]
[1733557610394,0.49542708,3984.2,3983.3,0.55]
[1733557610557,0.49542708,3984.2,3983.5,0.55]
[1733557610763,0.49542708,3984.2,3983.6,0.07842295]
[1733557611006,2.5853,3984.6,3983.8,0.79]
[1733557611301,4.11015915,3984.8,3983.9,0.62842295]
[1733557611498,4.11015915,3984.8,3984.0,0.07842295]
[1733557611698,4.11015915,3984.8,3984.1,0.07842295]
[1733557611866,4.11015915,3984.8,3984.2,0.07842295]
[1733557612226,2.24319592,3984.7,3983.9,0.55]
[1733557612358,1.75672,3984.7,3984.0,0.07841708]
[1733557612563,1.75672,3984.7,3984.1,0.07841708]
[1733557612770,1.75672,3984.7,3984.2,0.07841708]
[1733557613005,2.35347915,3984.8,3984.3,0.07841708]
[1733557613166,2.35347915,3984.8,3983.8,0.79]
[1733557613505,0.48647091,3984.7,3983.9,0.07842038]
[1733557613677,1.75678,3984.6,3984.0,0.07842038]
[1733557613861,0.04389069,3984.5,3984.1,0.07842038]
[1733557614058,0.04389069,3984.5,3983.8,0.79]
[1733557614262,0.04389069,3984.5,3983.9,0.07841979]
[1733557614495,0.04389069,3984.5,3984.0,0.07841979]
[1733557614664,0.04389069,3984.5,3984.1,0.07841979]
[1733557614967,0.04389069,3984.5,3984.2,0.07841979]
[1733557615161,0.04389069,3984.5,3984.3,0.0784173]
[1733557615388,0.04389069,3984.5,3983.8,0.79]
[1733557615587,2.35347915,3984.8,3983.8,0.79]
[1733557615588,0.04373077,3984.4,3983.9,0.07841563]
[1733557615795,0.04373077,3984.4,3984.0,0.07841563]
[1733557615993,0.04371086,3984.3,3984.1,0.07841563]
[1733557616165,0.04371086,3984.3,3984.2,0.07841563]
[1733557616374,1.75672,3984.7,3984.2,0.07841563]
[1733557616594,0.04371086,3984.3,3983.8,0.79]
[1733557616907,0.04369095,3984.2,3983.9,0.07841798]
[1733557617108,0.04369095,3984.2,3983.8,0.79]
[1733557617109,0.04369095,3984.2,3984.0,0.07841798]
[1733557617308,1.75676,3984.6,3984.1,0.07841798]
[1733557617484,1.75676,3984.6,3984.2,0.07841798]
[1733557617661,1.75676,3984.6,3983.8,0.79]
[1733557617662,2.29189191,3984.6,3984.3,0.07841798]
[1733557617867,2.29189191,3984.6,3984.4,0.07841798]
[1733557618066,2.29189191,3984.6,3983.8,0.79]
[1733557618267,1.75676,3984.6,3983.9,0.07841805]
[1733557618505,1.75676,3984.6,3984.0,0.07841805]
[1733557618693,1.75676,3984.6,3984.1,0.07841805]
[1733557618893,1.75676,3984.6,3984.2,0.07841805]
[1733557619204,1.75676,3984.6,3984.3,0.07841805]
[1733557619404,2.35347915,3984.8,3984.4,0.07841805]
[1733557619610,2.35347915,3984.8,3984.5,0.07841805]
[1733557619917,2.35347915,3984.8,3984.6,0.07841805]
[1733557620091,2.35347915,3984.8,3983.9,0.55]
[1733557620271,2.35347915,3984.8,3984.1,0.55]
[1733557620272,4.11014915,3984.8,3984.1,0.55]
[1733557620472,4.11014915,3984.8,3984.2,0.07841828]
[1733557620775,1.08846686,3984.5,3984.3,0.07841828]
[1733557621095,1.08846686,3984.5,3984.4,0.07841828]
[1733557621502,2.84526686,3984.5,3984.4,0.07841828]
[1733557621671,4.10046111,3984.5,3984.4,0.07841828]
[1733557622486,5.14689273,3984.5,3984.4,0.07841828]
[1733557622815,0.8660244,3984.5,3984.4,0.07841828]
[1733557623033,1.08846686,3984.7,3984.4,0.88991828]
[1733557623215,1.08846686,3984.7,3984.5,0.07841828]
[1733557623418,1.08846686,3984.7,3984.6,0.07841828]
[1733557623737,1.95519801,3984.7,3984.6,0.07841828]
[1733557624067,1.95519801,3984.7,3984.6,0.07841245]
[1733557624605,1.95539917,3984.7,3984.6,0.07841245]
[1733557625110,3.00183079,3984.7,3984.6,0.07841245]
[1733557625691,1.95539917,3984.7,3984.6,0.07841245]
[1733557626530,4.30222925,3984.7,3984.6,0.07841245]
[1733557626741,3.00183079,3984.7,3984.6,0.07841245]
[1733557627129,4.30222925,3984.7,3984.6,0.07841245]
[1733557627353,5.7753583,3984.7,3984.6,0.07841245]
[1733557627513,6.5994583,3984.7,3984.6,0.07841245]
[1733557627718,1.75682,3984.5,3983.9,0.55]
[1733557628049,2.13786604,3984.3,3984.0,0.0784196]
[1733557628260,0.86693231,3984.2,3984.1,0.0784196]
[1733557628543,3.25579763,3984.2,3984.1,0.0784196]
[1733557628854,1.95539917,3984.2,3983.8,0.79]
[1733557629143,1.08846686,3984.2,3983.8,0.79]
[1733557629320,0.86814767,3984.1,3983.8,0.79]
[1733557629654,2.13786604,3984.2,3983.8,0.79]
[1733557629856,0.86819274,3984.1,3983.8,0.79]
[1733557630066,1.30228343,3984.1,3983.8,0.79]
[1733557630212,0.86844125,3984.0,3983.8,0.79]
[1733557630419,2.13786604,3984.2,3983.8,0.79]
[1733557630420,1.30267222,3984.1,3983.8,0.79]
[1733557630620,0.86846116,3984.0,3983.8,0.79]
[1733557630860,1.3026808,3984.1,3983.8,0.79]
[1733557631037,0.86845675,3984.0,3983.8,0.79]
[1733557631214,1.30267855,3984.1,3983.8,0.79]
[1733557631557,2.17191444,3984.0,3983.8,0.79]
[1733557631757,0.04362277,3984.0,3983.8,0.79]
[1733557631916,0.86878143,3983.9,3983.8,0.79]
[1733557632432,2.21601683,3983.9,3983.8,0.79]
[1733557633326,3.26541601,3983.9,3983.8,0.79]
[1733557633742,4.70477186,3983.9,3983.3,0.79]
[1733557633941,1.05162518,3983.6,3983.3,0.79]
[1733557634164,3.22544314,3983.5,3983.3,0.79]
[1733557634478,3.22544314,3983.4,3983.0,0.79]
[1733557634645,1.05162518,3983.2,3982.2,0.79]
[1733557634846,2.21671575,3983.1,3982.2,0.79]
[1733557635071,3.26311107,3983.0,3982.2,0.79]
[1733557635286,1.05162518,3982.6,3982.2,0.79]
[1733557635429,3.26904762,3982.5,3982.2,0.79]
[1733557635635,3.26904762,3982.5,3981.9,0.79]
[1733557635636,0.86984603,3982.4,3981.9,0.79]
[1733557635981,0.04277823,3982.5,3981.9,0.79]
[1733557635982,0.04273837,3982.3,3981.9,0.79]
[1733557636351,1.05162518,3982.5,3981.9,0.79]
[1733557636552,0.04220087,3982.2,3981.9,0.79]
[1733557636883,0.04218093,3982.1,3981.9,0.79]
[1733557637046,1.3041384,3982.6,3981.9,0.79]
[1733557637247,0.04226066,3982.5,3981.9,0.79]
[1733557637454,1.3036124,3982.7,3981.9,0.79]
[1733557637653,0.04228059,3982.6,3982.0,0.55]
[1733557637885,2.80917518,3982.8,3982.0,0.55]
[1733557638059,0.04230052,3982.7,3982.0,0.55]
[1733557638387,1.05162518,3983.1,3982.2,0.55]
[1733557638567,0.04204658,3982.6,3982.3,0.8235]
[1733557638773,1.30321496,3982.9,3982.4,0.55]
[1733557638936,0.04202665,3982.5,3982.3,0.8235]
[1733557639287,0.04200672,3982.4,3982.3,0.8235]
[1733557639649,1.05162518,3982.7,3982.3,0.8235]
[1733557639650,1.30290315,3982.7,3982.3,0.8235]
[1733557639852,1.30290315,3982.7,3981.2,2.36025354]
[1733557639853,0.91063593,3982.6,3981.4,0.8235]
[1733557640052,0.86859845,3982.5,3981.5,0.55]
[1733557640396,0.91059127,3982.4,3981.5,0.55]
[1733557640554,0.04200315,3982.4,3981.5,0.55]
[1733557640890,2.35404146,3982.6,3981.7,0.55]
[1733557641037,0.91029143,3982.5,3981.8,0.07845795]
[1733557641385,0.91029143,3982.5,3981.7,0.55]
[1733557641386,0.04202308,3982.5,3981.9,0.07845795]
[1733557641553,0.04202308,3982.5,3982.0,0.07845795]
[1733557641760,0.04202308,3982.5,3982.1,0.07845795]
[1733557641984,3.28263179,3982.7,3981.5,0.55]
[1733557642182,0.04200315,3982.4,3981.7,0.55]
[1733557642386,0.04204301,3982.6,3981.9,0.55]
[1733557642569,0.04198322,3982.3,3982.0,0.07845516]
[1733557642746,1.30182213,3982.9,3982.1,0.90195516]
[1733557642944,0.04196329,3982.2,3982.1,1.3735]
[1733557643151,1.05162518,3983.2,3982.2,0.55]
[1733557643369,0.86758342,3983.1,3982.3,0.90194952]
[1733557643570,3.15510031,3983.3,3982.4,0.07844952]
[1733557643782,2.35300031,3983.4,3982.5,0.62844798]
[1733557644040,0.86745131,3983.3,3982.5,0.55]
[1733557644270,0.49777016,3983.2,3982.6,0.07844135]
[1733557644456,0.49777016,3983.2,3982.7,0.07844135]
[1733557644662,0.49777016,3983.2,3982.4,0.55]
[1733557644942,2.25515016,3983.2,3982.5,0.07844286]
[1733557645141,2.25515016,3983.2,3982.3,0.8235]
[1733557645142,0.49777016,3983.2,3982.6,0.07844286]
[1733557645522,1.05162518,3983.4,3982.7,0.07844083]
[1733557645811,0.86741226,3983.3,3982.5,0.8235]
[1733557646009,2.35300031,3983.5,3982.4,0.55]
[1733557646010,1.05162518,3983.5,3982.9,0.8235]
[1733557646169,2.35300031,3983.7,3982.9,0.8235]
[1733557646368,2.35300031,3983.7,3983.0,0.62843264]
[1733557646369,0.867314,3983.6,3983.0,0.62843264]
[1733557646710,0.04094793,3983.5,3983.1,0.07843177]
[1733557647007,0.04094793,3983.5,3983.0,0.55]
[1733557647209,0.04094793,3983.5,3983.1,0.07843177]
[1733557647363,1.05162518,3983.8,3983.0,0.55]
[1733557647568,0.04100956,3983.4,3983.1,0.07843198]
[1733557647768,3.23439877,3983.8,3983.0,0.55]
[1733557647978,0.04098964,3983.3,3983.1,0.07843198]
[1733557648176,3.23439877,3983.8,3983.0,0.55]
[1733557648381,0.04096972,3983.2,3983.1,0.07843197]
[1733557648607,4.99150877,3983.8,3983.1,0.07843197]
[1733557648829,0.04096972,3983.2,3983.0,0.55]
[1733557648984,2.80873518,3983.8,3983.1,0.07843256]
[1733557649323,0.8674406,3983.7,3983.0,0.55]
[1733557649483,0.8674406,3983.7,3983.1,0.078433]
[1733557649681,0.8674406,3983.7,3983.0,0.55]
[1733557649913,0.57435596,3983.6,3983.1,0.07843246]
[1733557650116,0.57435596,3983.6,3983.0,0.55]
[1733557650320,0.57435596,3983.6,3983.1,0.07843198]
[1733557650519,0.57435596,3983.6,3983.0,0.55]
[1733557650697,0.57435596,3983.6,3983.1,0.07843307]
[1733557650882,0.57435596,3983.6,3983.0,0.55]
[1733557651083,0.57435596,3983.6,3983.1,0.07843257]
[1733557651280,0.57435596,3983.6,3983.0,0.55]
[1733557651521,0.57435596,3983.6,3983.1,0.07843201]
[1733557651728,0.57435596,3983.6,3983.0,0.55]
[1733557651885,0.57435596,3983.6,3983.1,0.07843414]
[1733557652087,0.57435596,3983.6,3983.0,0.55]
[1733557652336,0.57435596,3983.6,3983.1,0.07843357]
[1733557652624,0.57435596,3983.6,3983.0,0.55]
[1733557653220,0.57435596,3983.6,3983.1,0.07843407]
[1733557653417,0.86742684,3983.5,3983.0,0.55]
[1733557654161,0.57435596,3983.6,3983.0,0.55]
[1733557654162,2.33155596,3983.6,3983.0,0.55]
[1733557654320,0.86744762,3983.5,3983.0,0.55]
[1733557654663,0.86744762,3983.5,3983.1,0.07843534]
[1733557654966,0.86744762,3983.5,3983.0,0.55]
[1733557655309,0.57435596,3983.6,3983.1,0.07843486]
[1733557655537,0.86744225,3983.5,3983.0,0.55]
[1733557655753,0.42506334,3983.4,3983.1,0.0784356]
[1733557655963,2.18236334,3983.4,3982.9,0.8235]
[1733557656112,0.8675281,3983.3,3982.9,0.8235]
[1733557656317,0.42506334,3983.4,3982.5,0.7989]
[1733557656512,0.42506334,3983.4,3982.6,0.07844144]
[1733557656513,1.95662333,3983.3,3982.6,0.07844144]
[1733557656852,1.95662333,3983.3,3982.5,0.7989]
[1733557656853,0.55365386,3983.2,3982.7,0.07844144]
[1733557657039,0.55365386,3983.2,3982.8,0.07844144]
[1733557657243,0.55365386,3983.2,3982.9,0.07844144]
[1733557657416,2.31103386,3983.2,3982.5,0.7989]
[1733557657616,2.31103386,3983.2,3982.6,0.07844207]
[1733557657916,0.48768396,3983.1,3982.7,0.07844207]
[1733557658116,0.48768396,3983.1,3982.8,0.07844207]
[1733557658316,0.48768396,3983.1,3982.9,0.07844207]
[1733557658517,0.48768396,3983.1,3982.5,0.7989]
[1733557658753,0.48768396,3983.1,3982.6,0.07844177]
[1733557658956,0.48768396,3983.1,3982.7,0.07844177]
[1733557659252,0.48768396,3983.1,3982.8,0.07844177]
[1733557659437,0.48768396,3983.1,3982.9,0.07844177]
[1733557659617,0.48768396,3983.1,3983.0,0.07844177]
[1733557659820,0.48768396,3983.1,3982.5,0.7989]
[1733557659821,0.48768396,3983.1,3982.6,0.07844177]
[1733557660014,1.75751,3982.9,3982.7,0.07844177]
[1733557660331,1.9820294,3982.9,3982.8,0.07844177]
[1733557660591,1.75765,3982.6,3982.2,0.7989]
[1733557660905,1.09217146,3982.9,3980.9,2.90787592]
[1733557660906,1.7577,3982.5,3982.3,0.07844841]
[1733557661113,1.7577,3982.5,3982.4,0.07844841]
[1733557661403,1.7577,3982.5,3981.5,0.7989]
[1733557661404,2.84681718,3982.5,3981.5,0.7989]
[1733557661612,0.38984424,3982.4,3981.5,0.7989]
[1733557661910,2.18834783,3982.4,3981.6,0.07845887]
[1733557662269,2.18834783,3982.4,3981.7,0.07845887]
[1733557662608,1.75778,3982.3,3981.8,0.07845887]
[1733557662807,1.75778,3982.3,3981.9,0.07845887]
[1733557662965,0.04051512,3982.2,3982.0,0.07845887]
[1733557663174,0.04051512,3982.2,3982.1,0.07845887]
[1733557663383,1.75778,3982.3,3982.1,0.07845887]
[1733557663589,0.04051512,3982.2,3981.6,0.55]
[1733557663786,0.04051512,3982.2,3981.7,0.07845971]
[1733557664076,0.04051512,3982.2,3981.8,0.07845971]
[1733557664293,0.7599,3982.1,3981.9,0.07845971]
[1733557664492,2.51776,3982.1,3982.0,0.07845971]
[1733557664694,2.51776,3982.1,3982.0,0.07846107]
[1733557665327,1.75777,3982.3,3982.0,0.07846107]
[1733557665495,1.75769,3982.5,3982.1,0.87736107]
[1733557665823,2.03862152,3982.5,3982.2,0.07846107]
[1733557666122,2.03862152,3982.5,3982.1,0.7989]
[1733557666915,2.03862152,3982.5,3982.2,0.07846072]
[1733557667117,2.03862152,3982.5,3982.1,0.7989]
[1733557667321,2.03862152,3982.5,3982.2,0.07846018]
[1733557667503,2.03862152,3982.5,3982.1,0.7989]
[1733557667705,2.03862152,3982.5,3982.2,0.07846022]
[1733557667904,2.03862152,3982.5,3982.1,0.7989]
[1733557668311,2.03862152,3982.5,3982.2,0.07846026]
[1733557668627,2.03862152,3982.5,3982.1,0.7989]
[1733557668832,2.03862152,3982.5,3982.2,0.07846026]
[1733557669133,2.03862152,3982.5,3982.1,0.7989]
[1733557670135,1.75775,3982.4,3981.1,0.7989]
[1733557670292,2.06682067,3982.3,3981.4,0.55]
[1733557670491,0.30903067,3982.3,3981.6,0.55]
[1733557670805,0.30903067,3982.3,3981.7,0.07846147]
[1733557670806,1.75788,3982.1,3981.7,0.07846147]
[1733557671125,1.75788,3982.1,3981.8,0.07846147]
[1733557671312,1.75788,3982.1,3981.9,0.07846147]
[1733557671517,0.7599,3982.3,3982.0,0.07846147]
[1733557671705,0.7599,3982.3,3981.3,0.7989]
[1733557671706,1.75782,3982.2,3981.3,0.7989]
[1733557671887,1.75789,3982.1,3981.4,0.07846417]
[1733557672084,1.75789,3982.1,3981.5,0.07846417]
[1733557672334,1.75789,3982.1,3981.6,0.07846417]
[1733557672629,1.75789,3982.1,3981.7,0.07846417]
[1733557672830,1.75789,3982.1,3981.8,0.07846417]
[1733557673042,2.20753271,3982.1,3981.9,0.07846417]
[1733557673233,2.20753271,3982.1,3981.3,0.7989]
[1733557673386,2.20753271,3982.1,3981.4,0.07846508]
[1733557673591,2.20753271,3982.1,3981.5,0.07846508]
[1733557673837,2.20753271,3982.1,3981.6,0.07846508]
[1733557674035,2.20753271,3982.1,3981.7,0.07846508]
[1733557674194,2.20753271,3982.1,3981.8,0.07846508]
[1733557674390,2.20753271,3982.1,3981.9,0.07846508]
[1733557674590,2.20753271,3982.1,3981.3,0.7989]
[1733557674987,2.20753271,3982.1,3981.4,0.07846433]
[1733557675298,2.20753271,3982.1,3981.5,0.07846433]
[1733557675501,2.20753271,3982.1,3981.6,0.07846433]
[1733557675799,0.44964271,3982.1,3981.7,0.07846433]
[1733557676002,1.75792,3982.0,3981.8,0.07846433]
[1733557676195,2.05466627,3982.0,3981.9,0.07846433]
[1733557676827,2.09373429,3982.0,3981.9,0.07846433]
[1733557677035,1.79698802,3982.0,3981.9,0.07846433]
[1733557677233,0.03906802,3982.0,3981.9,0.07846433]
[1733557677533,1.75782,3982.2,3981.9,0.07846433]
[1733557677699,0.03908795,3982.1,3981.3,0.7989]
[1733557677899,0.03908795,3982.1,3981.4,0.07846352]
[1733557678101,0.03908795,3982.1,3981.5,0.07846352]
[1733557678409,0.03908795,3982.1,3981.6,0.07846352]
[1733557678634,0.03908795,3982.1,3981.7,0.07846352]
[1733557678833,0.03908795,3982.1,3981.8,0.07846352]
[1733557678996,0.03908795,3982.1,3981.9,0.07846352]
[1733557679197,0.03908795,3982.1,3981.3,0.7989]
[1733557679419,0.03908795,3982.1,3981.4,0.07846424]
[1733557679657,3.09958569,3982.1,3981.5,0.07846424]
[1733557679960,1.79696795,3982.1,3981.6,0.07846424]
[1733557680129,3.09985467,3982.1,3981.7,0.07846424]
[1733557680459,1.79696795,3982.1,3981.8,0.07846424]
[1733557680621,1.22953833,3982.0,3981.9,0.07846424]
[1733557680819,1.26863825,3982.0,3981.9,0.07846424]
[1733557681123,0.39994923,3982.0,3981.9,0.07846563]
[1733557682438,0.03909992,3982.0,3981.9,0.07846563]
[1733557682763,1.79700992,3982.0,3981.9,0.07846563]
[1733557682937,2.66560923,3982.0,3981.9,0.07846563]
[1733557683136,1.79700992,3982.0,3981.9,0.07846563]
[1733557683372,0.03909992,3982.0,3981.9,0.07846563]
[1733557683855,0.03911412,3982.0,3981.9,0.07846563]
[1733557684063,0.03911412,3982.0,3981.9,0.0784657]
[1733557685347,3.26563939,3982.0,3981.9,0.0784657]
[1733557686329,2.66553917,3982.0,3981.9,0.0784657]
[1733557687366,0.03911412,3982.0,3981.3,0.7989]
[1733557687575,0.03911412,3982.0,3981.9,0.07846587]
[1733557687731,1.75789,3982.1,3981.9,0.07846587]
[1733557687930,1.75789,3982.1,3982.0,0.07846494]
[1733557688236,4.68277433,3982.1,3982.0,0.07846494]
[1733557688460,5.73439951,3982.1,3982.0,0.07846494]
[1733557688661,4.68277433,3982.1,3982.0,0.07846494]
[1733557688864,5.73439951,3982.1,3982.0,0.07846494]
[1733557689051,4.43180078,3982.1,3982.0,0.07846494]
[1733557689253,5.73439951,3982.1,3982.0,0.07846494]
[1733557689652,4.68277433,3982.1,3982.0,0.07846494]
[1733557689853,3.3801756,3982.1,3982.0,0.07846494]
[1733557690057,5.73439951,3982.1,3982.0,0.07846494]
[1733557690253,4.68277433,3982.1,3982.0,0.07846494]
[1733557690437,3.3801756,3982.1,3982.0,0.07846494]
[1733557690642,1.6222856,3982.1,3981.3,0.7989]
[1733557690863,2.62629415,3982.0,3981.4,0.0784669]
[1733557691051,1.75792,3982.0,3981.4,0.0784669]
[1733557691260,1.75792,3982.0,3981.5,0.0784669]
[1733557691450,2.84758278,3982.0,3981.6,0.0784669]
[1733557691652,0.03886013,3981.9,3981.7,0.0784669]
[1733557691860,0.03886013,3981.9,3981.8,0.0784669]
[1733557693258,0.90718858,3981.9,3981.8,0.0784669]
[1733557693765,0.03886013,3981.9,3981.8,0.0784669]
[1733557693964,0.90726299,3981.9,3981.8,0.0784669]
[1733557695788,0.03886013,3981.9,3981.8,0.0784669]
[1733557695941,0.9074858,3981.9,3981.8,0.0784669]
[1733557696259,2.21043286,3981.9,3981.8,0.0784669]
[1733557697478,0.03886013,3981.9,3981.8,0.9064669]
[1733557697681,1.30321537,3982.3,3981.8,0.9064669]
[1733557697976,0.03787928,3982.2,3982.0,0.828]
[1733557698195,0.03787928,3982.2,3982.1,0.0784669]
[1733557698777,0.86897914,3982.2,3982.1,0.0784669]
[1733557698979,0.90685842,3982.2,3982.1,0.0784669]
[1733557700454,2.2110087,3982.2,3982.1,0.0784669]
[1733557700671,0.90685842,3982.2,3982.1,0.0784669]
[1733557700869,0.03787928,3982.2,3982.1,0.0784669]
[1733557701053,0.03787928,3982.2,3982.1,0.07845402]
[1733557701274,1.05162518,3982.6,3982.2,0.828]
[1733557701589,2.8037373,3982.8,3982.3,0.07845402]
[1733557701590,0.86958146,3982.5,3982.3,0.07845402]
[1733557701748,0.86962425,3982.4,3982.2,0.828]
[1733557701952,1.05162518,3982.6,3982.3,0.07844989]
[1733557702195,0.86958885,3982.5,3982.4,0.07844989]
[1733557702395,0.86953252,3982.5,3982.4,0.07844989]
[1733557702757,2.17409809,3982.5,3982.4,0.07844989]
[1733557703100,1.05162518,3982.7,3982.4,0.90644989]
[1733557703303,2.2779247,3982.8,3982.5,0.07844989]
[1733557703460,2.2779247,3982.8,3982.4,0.828]
[1733557703461,0.86959866,3982.7,3982.6,0.07844989]
[1733557703882,0.86959866,3982.7,3982.6,0.90644989]
[1733557704197,2.17416856,3982.7,3982.6,0.90644989]
[1733557704491,3.22579374,3982.7,3982.6,0.90644989]
[1733557704653,2.17416856,3982.7,3982.6,0.90644989]
[1733557705006,3.22579374,3982.7,3982.6,0.90644989]
[1733557706179,3.22644083,3982.7,3982.6,0.90644989]
[1733557706661,3.26489498,3982.7,3982.6,0.90644989]
[1733557708184,2.2132698,3982.7,3982.6,0.07844989]
[1733557708694,3.26506334,3982.7,3982.6,0.07844989]
[1733557710001,0.90838041,3982.7,3982.6,0.85054989]
[1733557710207,0.03845415,3982.7,3982.6,1.40054989]
[1733557710499,1.05179354,3983.0,3982.6,0.76850488]
[1733557710706,0.90678538,3982.9,3982.7,0.85054989]
[1733557710907,0.03736845,3982.9,3982.8,0.07843731]
[1733557711210,1.05179354,3983.3,3982.9,0.7721]
[1733557711372,1.05179354,3983.4,3982.9,0.7721]
[1733557711572,0.86919051,3983.3,3983.0,0.07843731]
[1733557711788,1.05179354,3983.5,3983.1,0.07843731]
[1733557712028,3.22465599,3983.4,3983.2,0.07843731]
[1733557712315,2.17234121,3983.3,3982.9,0.7721]
[1733557712473,0.86892315,3983.2,3983.0,0.07843434]
[1733557712667,1.30339866,3983.3,3983.1,0.07843434]
[1733557712881,1.05179354,3983.4,3983.2,0.07843434]
[1733557713223,2.17179442,3983.3,3982.6,0.55]
[1733557713531,2.17179442,3983.3,3982.5,0.7721]
[1733557713532,2.80926354,3983.0,3982.7,0.07843516]
[1733557713819,0.7995,3983.1,3981.9,1.08966278]
[1733557713820,4.98110796,3982.9,3982.2,0.7721]
[1733557714024,4.98110796,3982.9,3982.3,0.07844536]
[1733557714025,2.17179442,3982.8,3982.3,0.07844536]
[1733557714321,1.30323703,3982.8,3982.4,0.07844559]
[1733557714483,0.86884559,3982.7,3982.5,0.07844559]
[1733557714825,0.64894884,3982.8,3982.6,0.07844559]
[1733557714985,0.86881466,3982.7,3982.2,0.7721]
[1733557715180,1.05179354,3982.9,3982.3,0.07844456]
[1733557715482,0.86877126,3982.8,3982.4,0.07844456]
[1733557715690,2.80927354,3983.0,3982.5,0.07844456]
[1733557716018,3.22362745,3982.9,3982.6,0.07844456]
[1733557716223,0.86873356,3982.8,3982.2,0.7721]
[1733557716427,2.80931354,3982.9,3982.3,0.0784456]
[1733557716585,0.86873669,3982.8,3982.4,0.0784456]
[1733557716787,2.80931354,3982.9,3982.5,0.0784456]
[1733557717087,0.86871236,3982.8,3982.6,0.0784456]
[1733557717287,1.3030747,3982.8,3982.2,0.7721]
[1733557717504,1.30305082,3982.8,3982.3,0.07844699]
[1733557717707,1.30303673,3982.8,3982.4,0.07844699]
[1733557717918,3.40080024,3982.9,3982.5,0.07844699]
[1733557718096,2.82236458,3982.8,3982.6,0.07844699]
[1733557718296,1.95367821,3982.8,3982.2,0.7721]
[1733557718498,1.75752,3982.9,3982.3,0.07844661]
[1733557718726,0.86866464,3982.8,3982.4,0.07844661]
[1733557719027,1.05179354,3982.9,3982.5,0.07844661]
[1733557719232,0.86865646,3982.8,3982.6,0.07844661]
[1733557719401,1.30299161,3982.9,3982.7,0.07844661]
[1733557719735,1.30299161,3982.9,3982.2,0.7721]
[1733557719933,0.86864478,3982.8,3982.3,0.0784453]
[1733557720130,1.30296717,3982.9,3982.4,0.0784453]
[1733557720328,0.86864677,3982.8,3982.5,0.0784453]
[1733557720624,1.30296717,3982.9,3982.6,0.0784453]
[1733557720855,1.30296717,3982.9,3982.7,0.0784453]
[1733557721012,0.8686224,3982.8,3982.2,0.7721]
[1733557721346,1.30296717,3982.9,3982.3,0.07844548]
[1733557721651,1.05179354,3983.0,3982.4,0.07844548]
[1733557721820,0.03747274,3982.8,3982.5,0.07844548]
[1733557722025,0.03749266,3982.9,3982.6,0.07844548]
[1733557722351,1.30287246,3983.0,3982.7,0.07844303]
[1733557722519,0.90606702,3982.9,3982.8,0.07844303]
[1733557723325,2.20894982,3982.9,3982.8,0.07844303]
[1733557723942,0.90606702,3982.9,3982.8,0.07844303]
[1733557724463,0.9060405,3982.9,3982.2,0.7721]
[1733557724656,0.03749266,3982.9,3982.8,0.07844289]
[1733557724827,0.03749266,3982.9,3982.8,0.15688583]
[1733557725029,0.90602901,3982.9,3982.8,0.15688583]
[1733557726956,4.01841204,3982.9,3982.8,0.15688583]
[1733557727155,4.49567586,3982.9,3982.8,0.15688583]
[1733557727767,5.5474694,3982.9,3982.8,0.15688583]
[1733557728209,4.49567586,3982.9,3982.8,0.07844289]
[1733557728369,4.49567586,3982.9,3982.8,0.15688777]
[1733557728676,2.20889283,3982.9,3982.8,0.15688777]
[1733557728966,0.90602901,3982.9,3982.8,0.07844488]
[1733557729276,0.90608214,3982.9,3982.8,0.07844488]
[1733557729482,0.90608418,3982.9,3982.8,0.07844488]
[1733557729850,0.03749266,3982.9,3982.8,0.07844488]
[1733557730454,1.75747,3983.0,3982.8,0.07844488]
[1733557730653,0.90613631,3982.9,3982.6,0.8107]
[1733557730873,0.0375246,3982.9,3982.7,0.07844162]
[1733557731095,0.0375246,3982.9,3982.8,0.07844162]
[1733557731274,1.73177628,3982.9,3982.8,0.07844162]
[1733557731453,3.03476961,3982.9,3982.8,0.07844162]
[1733557731787,4.08656315,3982.9,3982.8,0.07844162]
[1733557732152,6.58622024,3982.9,3982.8,0.07844162]
[1733557733975,5.53479422,3982.9,3982.8,0.07844162]
[1733557734148,7.112232,3982.9,3982.8,0.07844162]
[1733557734987,1.75776,3982.4,3981.8,0.8107]
[1733557735186,2.17201253,3982.3,3981.9,0.0784571]
[1733557735392,2.20912084,3982.2,3982.0,0.0784571]
[1733557735549,0.03710831,3982.2,3982.1,0.0784571]
[1733557735747,2.17274934,3982.2,3982.1,0.0784571]
[1733557735946,3.96767765,3982.2,3982.1,0.0784571]
[1733557736174,4.70501524,3982.2,3982.1,0.0784571]
[1733557736359,6.28157421,3982.2,3982.1,0.0784571]
[1733557736579,4.70501524,3982.2,3982.1,0.0784571]
[1733557737048,6.28157421,3982.2,3982.1,0.0784571]
[1733557737394,4.70501524,3982.2,3982.1,0.0784571]